[Event "Hungarian Youth-ch I 2024"]
[Site "Szolnok"]
[Date "2024.04.01"]
[Round "1.1"]
[White "Herpai, Jozsef Matyas"]
[Black "Szikszai, Bertalan"]
[Result "1/2-1/2"]
[ECO "A45"]
[WhiteElo "2037"]
[BlackElo "2312"]
[Annotator "ChessBase"]
[PlyCount "80"]
[EventDate "2024.03.31"]
[EventType "swiss"]
[EventCountry "HUN"]
[SourceTitle "playchess.com"]
[Source "ChessBase"]
[SourceQuality "1"]
[TimeControl "5400+30"]

1. d4 {[%emt 0:01:09]} Nf6 {[%emt 0:00:20]} 2. Bf4 {[%emt 0:00:07]} g6 {[%emt 0:00:48]} 3. Nc3 {[%emt 0:00:04]} d5 {[%emt 0:00:12]} 4. e3 {[%emt 0:00:23]} Bg7 {[%emt 0:00:13]} 5. h4 {[%emt 0:00:32]} h5 {[%emt 0:01:33]} 6. Nf3 {[%emt 0:01:10]} O-O {[%emt 0:02:23]} 7. Ne5 {[%emt 0:00:48]} c5 {[%emt 0:07:10]} 8. Qd2 {[%emt 0:00:34]} cxd4 {[%emt 0:15:32]} 9. exd4 {[%emt 0:00:14]} Nc6 {[%emt 0:00:05]} 10. f3 {[%emt 0:01:05]} Bf5 {[%emt 0:04:01]} 11. Bb5 {[%emt 0:00:15]} Nb4 {[%emt 0:12:29]} 12. Ba4 {[%emt 0:00:05]} Rc8 {[%emt 0:07:14]} 13. a3 {[%emt 0:00:31]} Na6 {[%emt 0:02:59]} 14. g4 {[%emt 0:19:08]} Be6 {[%emt 0:16:59]} 15. O-O-O {[%emt 0:14:23]} Qa5 {[%emt 0:00:36]} 16. Bb3 {[%emt 0:02:57]} Nc7 {[%emt 0:01:14]} 17. Bg5 {[%emt 0:14:27]} Rfe8 {[%emt 0:03:45]} 18. Kb1 {[%emt 0:00:57]} Kh7 {[%emt 0:04:09]} 19. Nd3 {[%emt 0:08:00]} Qa6 {[%emt 0:12:07]} 20. Nf4 {[%emt 0:01:36]} Qd6 {[%emt 0:00:23]} 21. gxh5 {[%emt 0:06:45]} Nxh5 {[%emt 0:00:51]} 22. Nxh5 {[%emt 0:00:29]} gxh5 {[%emt 0:00:03]} 23. Bf4 {[%emt 0:00:51]} Qd8 {[%emt 0:02:32]} 24. Qd3+ {[%emt 0:01:17]} Kh8 {[%emt 0:01:15]} 25. Rhg1 {[%emt 0:00:55]} Bf6 {[%emt 0:01:28]} 26. Bg5 {[%emt 0:02:19]} Rg8 {[%emt 0:00:26]} 27. Bxf6+ {[%emt 0:00:59]} exf6 {[%emt 0:00:04]} 28. Qe3 {[%emt 0:00:47]} Kh7 {[%emt 0:00:38]} 29. Rxg8 {[%emt 0:03:57]} Qxg8 {[%emt 0:00:13]} 30. Rg1 {[%emt 0:00:13]} Qf8 {[%emt 0:00:07]} 31. Qd3+ {[%emt 0:00:49]} Kh8 {[%emt 0:01:18]} 32. Qe3 {[%emt 0:01:45]} Kh7 {[%emt 0:00:19]} 33. Qd3+ {[%emt 0:02:06]} Kh8 {[%emt 0:00:03]} 34. Qd2 {[%emt 0:00:35]} Kh7 {[%emt 0:00:50]} 35. Qf4 {[%emt 0:05:14]} Qh6 {[%emt 0:00:16]} 36. Qxh6+ {[%emt 0:00:35]} Kxh6 {[%emt 0:00:04]} 37. Ka2 {[%emt 0:01:28]} Rd8 {[%emt 0:02:45]} 38. Ne2 {[%emt 0:01:09]} Nb5 {[%emt 0:00:39]} 39. c3 {[%emt 0:01:15]} Nd6 {[%emt 0:00:06]} 40. Ng3 {[%emt 0:00:36]} a6 1/2-1/2

[Event "Hungarian Youth-ch I 2024"]
[Site "Szolnok"]
[Date "2024.04.01"]
[Round "1.2"]
[White "Fule, Simon"]
[Black "Gulacsi, Donat Ferenc"]
[Result "1/2-1/2"]
[ECO "B12"]
[WhiteElo "2262"]
[BlackElo "1912"]
[Annotator "ChessBase"]
[PlyCount "72"]
[EventDate "2024.03.31"]
[EventType "swiss"]
[EventCountry "HUN"]
[SourceTitle "playchess.com"]
[Source "ChessBase"]
[SourceQuality "1"]
[TimeControl "5400+30"]

1. e4 {[%emt 0:00:01]} c6 {[%emt 0:02:54]} 2. d4 {[%emt 0:00:07]} d5 {[%emt 0:00:16]} 3. e5 {[%emt 0:00:19]} Bf5 {[%emt 0:00:08]} 4. h4 {[%emt 0:00:10]} h5 {[%emt 0:04:30]} 5. Bd3 {[%emt 0:00:29]} Bxd3 {[%emt 0:00:45]} 6. Qxd3 {[%emt 0:00:07]} e6 {[%emt 0:00:54]} 7. Bg5 {[%emt 0:00:23]} Qb6 {[%emt 0:10:22]} 8. Nd2 {[%emt 0:00:34]} c5 {[%emt 0:01:10]} 9. c4 {[%emt 0:00:23]} Nc6 {[%emt 0:13:39]} 10. Ngf3 {[%emt 0:17:14]} Be7 {[%emt 0:20:39]} 11. cxd5 {[%emt 0:17:03]} Nb4 {[%emt 0:07:50]} 12. Qb3 {[%emt 0:00:25]} Nxd5 {[%emt 0:01:05]} 13. Qa4+ {[%emt 0:01:54]} Qc6 {[%emt 0:12:34]} 14. Qxc6+ {[%emt 0:02:57]} bxc6 {[%emt 0:00:26]} 15. Bxe7 {[%emt 0:12:24]} Ngxe7 {[%emt 0:00:17]} 16. dxc5 {[%emt 0:00:17]} Nf4 {[%emt 0:01:37]} 17. O-O {[%emt 0:14:26]} Nd3 {[%emt 0:02:04]} 18. Ne4 {[%emt 0:11:07]} Ng6 {[%emt 0:02:05]} 19. Nd6+ {[%emt 0:00:35]} Ke7 {[%emt 0:00:18]} 20. Nc4 {[%emt 0:00:08]} Rab8 {[%emt 0:06:45]} 21. b3 {[%emt 0:06:17]} Rhd8 {[%emt 0:02:58]} 22. Rfd1 {[%emt 0:05:10]} Rd5 {[%emt 0:06:59]} 23. Rd2 {[%emt 0:05:29]} Nxc5 {[%emt 0:00:49]} 24. Rad1 {[%emt 0:02:55]} Rbd8 {[%emt 0:00:36]} 25. Na5 {[%emt 0:01:20]} Nxe5 {[%emt 0:00:36]} 26. Rxd5 {[%emt 0:00:32]} Rxd5 {[%emt 0:00:03]} 27. Rxd5 {[%emt 0:00:32]} Nxf3+ {[%emt 0:00:04]} 28. gxf3 {[%emt 0:00:06]} cxd5 {[%emt 0:00:04]} 29. Nc6+ {[%emt 0:00:06]} Kd6 {[%emt 0:01:12]} 30. Nxa7 {[%emt 0:00:05]} Nd3 {[%emt 0:00:44]} 31. a3 {[%emt 0:01:17]} Kc5 {[%emt 0:00:47]} 32. Kf1 {[%emt 0:00:23]} Nf4 {[%emt 0:00:35]} 33. b4+ {[%emt 0:00:58]} Kb6 {[%emt 0:00:26]} 34. Nc8+ {[%emt 0:00:05]} Kc7 {[%emt 0:00:33]} 35. Na7 {[%emt 0:00:11]} Kb6 {[%emt 0:00:07]} 36. Nc8+ {[%emt 0:00:05]} Kc7 {[%emt 0:00:45]} 1/2-1/2

[Event "Hungarian Youth-ch I 2024"]
[Site "Szolnok"]
[Date "2024.04.01"]
[Round "1.3"]
[White "Frank, Balint"]
[Black "Gathi, Donat"]
[Result "1-0"]
[ECO "D71"]
[WhiteElo "1939"]
[BlackElo "2192"]
[Annotator "ChessBase"]
[PlyCount "115"]
[EventDate "2024.03.31"]
[EventType "swiss"]
[EventCountry "HUN"]
[SourceTitle "playchess.com"]
[Source "ChessBase"]
[SourceQuality "1"]
[TimeControl "5400+30"]

1. d4 {[%emt 0:00:10]} Nf6 {[%emt 0:00:06]} 2. c4 {[%emt 0:00:03]} g6 {[%emt 0:00:08]} 3. g3 {[%emt 0:00:05]} Bg7 {[%emt 0:00:05]} 4. Bg2 {[%emt 0:00:03]} d6 {[%emt 0:00:08]} 5. Nf3 {[%emt 0:00:08]} O-O {[%emt 0:00:07]} 6. O-O {[%emt 0:00:03]} Nc6 {[%emt 0:00:16]} 7. Nc3 {[%emt 0:00:08]} Nd7 {[%emt 0:00:20]} 8. h3 {[%emt 0:01:10]} e5 {[%emt 0:04:03]} 9. d5 {[%emt 0:15:59]} Ne7 {[%emt 0:09:23]} 10. e4 {[%emt 0:06:32]} f5 {[%emt 0:00:08]} 11. Bd2 {[%emt 0:01:41]} Nc5 {[%emt 0:02:15]} 12. b4 {[%emt 0:02:17]} Nxe4 {[%emt 0:03:45]} 13. Nxe4 {[%emt 0:01:08]} fxe4 {[%emt 0:00:11]} 14. Ng5 {[%emt 0:00:24]} Nf5 {[%emt 0:23:15]} 15. Ne6 {[%emt 0:06:36]} Bxe6 {[%emt 0:00:10]} 16. dxe6 {[%emt 0:00:04]} c6 {[%emt 0:03:50]} 17. Bxe4 {[%emt 0:09:49]} d5 {[%emt 0:06:50]} 18. cxd5 {[%emt 0:00:09]} cxd5 {[%emt 0:00:06]} 19. Qb3 {[%emt 0:00:16]} Ne7 {[%emt 0:02:35]} 20. Bg5 {[%emt 0:13:23]} dxe4 {[%emt 0:27:01]} 21. Rad1 {[%emt 0:00:34]} Qe8 {[%emt 0:00:06]} 22. Bxe7 {[%emt 0:00:15]} Qxe7 {[%emt 0:00:07]} 23. Rd7 {[%emt 0:00:04]} Qf6 {[%emt 0:00:32]} 24. e7+ {[%emt 0:00:50]} Kh8 {[%emt 0:13:44]} 25. exf8=Q+ {[%emt 0:00:22]} Rxf8 {[%emt 0:00:03]} 26. Rxb7 {[%emt 0:02:36]} Bh6 {[%emt 0:00:07]} 27. Qd1 {[%emt 0:04:38]} Rd8 {[%emt 0:02:22]} 28. Rd7 {[%emt 0:03:20]} Rf8 {[%emt 0:00:23]} 29. Qd6 {[%emt 0:00:50]} Qxd6 {[%emt 0:01:46]} 30. Rxd6 {[%emt 0:00:01]} Kg7 {[%emt 0:01:06]} 31. Rd7+ {[%emt 0:00:12]} Kf6 {[%emt 0:00:06]} 32. Rxa7 {[%emt 0:01:04]} Bd2 {[%emt 0:00:52]} 33. b5 {[%emt 0:00:16]} Kg5 {[%emt 0:00:21]} 34. Kg2 {[%emt 0:00:35]} Bc3 {[%emt 0:00:18]} 35. a4 {[%emt 0:01:53]} Bd4 {[%emt 0:00:05]} 36. Rxh7 {[%emt 0:00:32]} Ra8 {[%emt 0:00:07]} 37. f4+ {[%emt 0:06:12]} exf3+ {[%emt 0:00:15]} 38. Rxf3 {[%emt 0:01:05]} Rxa4 {[%emt 0:00:05]} 39. Rb3 {[%emt 0:01:03]} e4 {[%emt 0:00:24]} 40. b6 {[%emt 0:02:13]} Ra2+ {[%emt 0:00:06]} 41. Kf1 {[%emt 0:00:04]} Ra1+ {[%emt 0:00:45]} 42. Ke2 {[%emt 0:01:35]} Ra2+ {[%emt 0:00:07]} 43. Kd1 {[%emt 0:00:33]} Ra1+ {[%emt 0:00:03]} 44. Kd2 {[%emt 0:01:16]} Ra2+ {[%emt 0:00:24]} 45. Kc1 {[%emt 0:01:16]} Ra1+ {[%emt 0:00:05]} 46. Rb1 {[%emt 0:01:24]} Rxb1+ {[%emt 0:00:05]} 47. Kxb1 {[%emt 0:00:02]} Bxb6 {[%emt 0:00:09]} 48. Rf7 {[%emt 0:00:12]} e3 {[%emt 0:01:12]} 49. Kc2 {[%emt 0:00:44]} Bc5 {[%emt 0:00:52]} 50. Kd3 {[%emt 0:00:09]} Bd6 {[%emt 0:00:11]} 51. Rf3 {[%emt 0:00:49]} Bc5 {[%emt 0:00:05]} 52. Rxe3 {[%emt 0:05:04]} Bxe3 {[%emt 0:00:05]} 53. Kxe3 {[%emt 0:00:03]} Kf5 {[%emt 0:00:06]} 54. Kd4 {[%emt 0:02:40]} Ke6 {[%emt 0:00:15]} 55. Ke4 {[%emt 0:00:24]} Kf6 {[%emt 0:00:06]} 56. Kf4 {[%emt 0:00:57]} g5+ {[%emt 0:00:05]} 57. Ke4 {[%emt 0:00:14]} Ke6 {[%emt 0:00:05]} 58. g4 {[%emt 0:00:09]} 1-0

[Event "Hungarian Youth-ch I 2024"]
[Site "Szolnok"]
[Date "2024.04.01"]
[Round "1.4"]
[White "Borzsei, Andras"]
[Black "Bekesi, Aron"]
[Result "0-1"]
[ECO "A81"]
[WhiteElo "2126"]
[BlackElo "1783"]
[Annotator "NA"]
[PlyCount "88"]
[EventDate "2024.03.31"]
[EventType "swiss"]
[EventCountry "HUN"]
[SourceTitle "playchess.com"]
[Source "ChessBase"]
[SourceQuality "1"]
[TimeControl "5400+30"]

1. d4 {[%emt 0:00:07]} f5 {[%emt 0:00:10]} 2. g3 {[%emt 0:00:37]} Nf6 {[%emt 0:00:15]} 3. Bg2 {[%emt 0:00:06]} e6 {[%emt 0:00:18]} 4. c4 {[%emt 0:00:29]} d5 {[%emt 0:00:56]} 5. Nh3 {[%emt 0:00:53]} c6 {[%emt 0:00:57]} 6. O-O {[%emt 0:01:03]} Bd6 {[%emt 0:00:47]} 7. Bf4 {[%emt 0:00:57]} O-O {[%emt 0:00:31]} 8. Nd2 {[%emt 0:01:18]} b6 {[%emt 0:07:18]} 9. Rc1 {[%emt 0:05:40]} Ba6 {[%emt 0:03:10]} 10. Bxd6 {[%emt 0:15:53]} Qxd6 {[%emt 0:00:21]} 11. b3 {[%emt 0:00:37]} Nbd7 {[%emt 0:03:55]} 12. Nf3 {[%emt 0:10:27]} Ne4 {[%emt 0:08:32]} 13. Nf4 {[%emt 0:14:04]} Rac8 {[%emt 0:14:32]} 14. Nd3 {[%emt 0:03:21]} Rfd8 {[%emt 0:04:40]} 15. Re1 {[%emt 0:18:17]} c5 {[%emt 0:15:25]} 16. cxd5 {[%emt 0:08:31]} exd5 {[%emt 0:01:31]} 17. e3 {[%emt 0:02:38]} c4 {[%emt 0:02:58]} 18. Nde5 {[%emt 0:02:15]} Nxe5 {[%emt 0:01:43]} 19. Nxe5 {[%emt 0:05:16]} Qa3 {[%emt 0:13:12]} 20. bxc4 {[%emt 0:01:55]} Bxc4 {[%emt 0:02:23]} 21. Nxc4 {[%emt 0:01:02]} Rxc4 {[%emt 0:01:00]} 22. Rxc4 {[%emt 0:00:54]} dxc4 {[%emt 0:00:05]} 23. Qc2 {[%emt 0:00:45]} b5 {[%emt 0:03:05]} 24. Bxe4 {[%emt 0:02:25]} fxe4 {[%emt 0:00:08]} 25. Rb1 {[%emt 0:00:56]} Qd3 {[%emt 0:01:10]} 26. Qb2 {[%emt 0:01:38]} a6 {[%emt 0:00:41]} 27. Rc1 {[%emt 0:00:05]} Rc8 {[%emt 0:01:25]} 28. Rc3 {[%emt 0:00:09]} Qd1+ {[%emt 0:00:13]} 29. Kg2 {[%emt 0:00:03]} Rf8 {[%emt 0:02:15]} 30. Rc1 {[%emt 0:02:07]} Qf3+ {[%emt 0:00:36]} 31. Kg1 {[%emt 0:00:02]} h5 {[%emt 0:01:05]} 32. Rc2 {[%emt 0:01:17]} h4 {[%emt 0:00:20]} 33. Qc1 {[%emt 0:00:30]} b4 {[%emt 0:01:09]} 34. Qf1 {[%emt 0:00:22]} c3 {[%emt 0:01:29]} 35. d5 {[%emt 0:00:33]} hxg3 {[%emt 0:00:21]} 36. hxg3 {[%emt 0:00:09]} Rf6 {[%emt 0:01:03]} 37. Rc1 {[%emt 0:00:03]} Rh6 {[%emt 0:00:25]} 38. Qg2 {[%emt 0:00:06]} Qxg2+ {[%emt 0:00:20]} 39. Kxg2 {[%emt 0:00:03]} Rd6 {[%emt 0:00:15]} 40. Rd1 {[%emt 0:00:33]} a5 {[%emt 0:00:22]} 41. f3 {[%emt 0:00:22]} exf3+ {[%emt 0:00:21]} 42. Kxf3 {[%emt 0:00:03]} a4 {[%emt 0:00:38]} 43. Rb1 {[%emt 0:01:05]} c2 {[%emt 0:00:11]} 44. Rc1 {[%emt 0:00:08]} b3 {[%emt 0:00:04]} 0-1

[Event "Hungarian Youth-ch I 2024"]
[Site "Szolnok"]
[Date "2024.04.01"]
[Round "1.5"]
[White "Barna, Peter"]
[Black "Kocsmar, Akos"]
[Result "0-1"]
[ECO "B23"]
[WhiteElo "1702"]
[BlackElo "2029"]
[Annotator "NA"]
[PlyCount "72"]
[EventDate "2024.03.31"]
[EventType "swiss"]
[EventCountry "HUN"]
[SourceTitle "playchess.com"]
[Source "ChessBase"]
[SourceQuality "1"]
[TimeControl "5400+30"]

1. e4 {[%emt 0:00:02]} c5 {[%emt 0:00:03]} 2. Nc3 {[%emt 0:00:05]} e6 {[%emt 0:00:06]} 3. f4 {[%emt 0:00:11]} d5 {[%emt 0:00:04]} 4. Bb5+ {[%emt 0:00:11]} Bd7 {[%emt 0:00:02]} 5. Bxd7+ {[%emt 0:00:16]} Qxd7 {[%emt 0:00:01]} 6. d3 {[%emt 0:00:53]} Nc6 {[%emt 0:01:21]} 7. Nf3 {[%emt 0:00:24]} O-O-O {[%emt 0:03:42]} 8. O-O {[%emt 0:07:57]} Nge7 {[%emt 0:06:33]} 9. Ng5 {[%emt 0:15:39]} Ng6 {[%emt 0:08:36]} 10. f5 {[%emt 0:00:30]} Nge5 {[%emt 0:01:59]} 11. fxe6 {[%emt 0:01:07]} fxe6 {[%emt 0:00:07]} 12. exd5 {[%emt 0:17:12]} exd5 {[%emt 0:02:02]} 13. Bf4 {[%emt 0:04:49]} Be7 14. Bxe5 {[%emt 0:00:30]} Bxg5 {[%emt 0:08:30]} 15. Bg3 {[%emt 0:00:25]} Nd4 {[%emt 0:03:49]} 16. Be5 {[%emt 0:14:28]} Ne6 {[%emt 0:06:12]} 17. Qh5 {[%emt 0:11:03]} g6 {[%emt 0:03:38]} 18. Qg4 {[%emt 0:00:06]} Rhf8 {[%emt 0:00:34]} 19. a4 {[%emt 0:02:33]} Be3+ {[%emt 0:17:32]} 20. Kh1 {[%emt 0:00:10]} Bd4 {[%emt 0:00:19]} 21. Bg3 {[%emt 0:14:52]} Bxc3 {[%emt 0:07:17]} 22. bxc3 {[%emt 0:00:02]} Ng7 {[%emt 0:00:19]} 23. Qxd7+ {[%emt 0:02:04]} Kxd7 {[%emt 0:00:07]} 24. Rxf8 {[%emt 0:00:13]} Rxf8 {[%emt 0:00:01]} 25. h3 {[%emt 0:00:13]} Nf5 {[%emt 0:00:34]} 26. Bf2 {[%emt 0:00:27]} Kc6 {[%emt 0:00:34]} 27. Rb1 {[%emt 0:01:44]} Re8 {[%emt 0:01:26]} 28. Re1 {[%emt 0:01:37]} Rxe1+ {[%emt 0:00:34]} 29. Bxe1 {[%emt 0:00:05]} Ne3 {[%emt 0:00:05]} 30. Kg1 {[%emt 0:02:02]} Nxc2 {[%emt 0:00:05]} 31. Bd2 {[%emt 0:00:07]} c4 {[%emt 0:01:24]} 32. d4 {[%emt 0:00:50]} Kb6 {[%emt 0:00:47]} 33. Kf2 {[%emt 0:01:16]} Ka5 {[%emt 0:00:01]} 34. Kf3 {[%emt 0:00:11]} Kxa4 {[%emt 0:00:15]} 35. Kf4 {[%emt 0:00:05]} Kb5 {[%emt 0:00:17]} 36. Ke5 {[%emt 0:00:06]} Kc6 {[%emt 0:00:02]} 0-1

[Event "Hungarian Youth-ch I 2024"]
[Site "Szolnok"]
[Date "2024.04.01"]
[Round "1.6"]
[White "Varga, Boldizsar"]
[Black "Bodrogi, Bendeguz"]
[Result "0-1"]
[ECO "A13"]
[WhiteElo "1990"]
[BlackElo "2316"]
[Annotator "ChessBase"]
[PlyCount "90"]
[EventDate "2024.03.31"]
[EventType "swiss"]
[EventCountry "HUN"]
[SourceTitle "playchess.com"]
[Source "ChessBase"]
[SourceQuality "1"]
[TimeControl "5400+30"]

1. c4 {[%emt 0:00:05]} e6 {[%emt 0:00:49]} 2. Nf3 {[%emt 0:02:55]} d5 {[%emt 0:00:08]} 3. g3 {[%emt 0:00:10]} d4 {[%emt 0:00:06]} 4. d3 {[%emt 0:00:43]} Nc6 {[%emt 0:00:13]} 5. Bg2 {[%emt 0:00:49]} Bb4+ {[%emt 0:05:19]} 6. Bd2 {[%emt 0:05:16]} a5 {[%emt 0:00:13]} 7. O-O {[%emt 0:01:36]} Nf6 {[%emt 0:01:16]} 8. a3 {[%emt 0:04:53]} Bc5 {[%emt 0:10:16]} 9. e3 {[%emt 0:10:40]} O-O {[%emt 0:02:14]} 10. exd4 {[%emt 0:03:32]} Nxd4 {[%emt 0:00:36]} 11. Nxd4 {[%emt 0:01:03]} Bxd4 {[%emt 0:00:38]} 12. Nc3 {[%emt 0:01:03]} e5 {[%emt 0:04:46]} 13. Qc2 {[%emt 0:04:56]} c6 {[%emt 0:02:01]} 14. Be3 {[%emt 0:07:40]} Bf5 {[%emt 0:01:54]} 15. Rad1 {[%emt 0:05:53]} Re8 {[%emt 0:11:27]} 16. Ne2 {[%emt 0:10:36]} Bxe3 {[%emt 0:15:48]} 17. fxe3 {[%emt 0:00:09]} Ng4 {[%emt 0:01:09]} 18. Qd2 {[%emt 0:01:55]} Qg5 {[%emt 0:01:00]} 19. e4 {[%emt 0:03:44]} Qxd2 {[%emt 0:00:06]} 20. Rxd2 {[%emt 0:00:06]} Be6 {[%emt 0:00:05]} 21. h3 {[%emt 0:03:58]} Nf6 {[%emt 0:01:05]} 22. b3 {[%emt 0:01:16]} Red8 {[%emt 0:09:33]} 23. Rfd1 {[%emt 0:01:43]} Nd7 {[%emt 0:04:32]} 24. d4 {[%emt 0:04:14]} exd4 {[%emt 0:00:15]} 25. Rxd4 {[%emt 0:00:21]} Kf8 {[%emt 0:01:27]} 26. Kf2 {[%emt 0:07:36]} Ke7 {[%emt 0:00:09]} 27. Ke3 {[%emt 0:01:16]} a4 {[%emt 0:03:35]} 28. Rb1 {[%emt 0:08:50]} axb3 {[%emt 0:08:09]} 29. Rxb3 {[%emt 0:00:13]} Ra7 {[%emt 0:01:51]} 30. Nf4 {[%emt 0:04:09]} Rda8 {[%emt 0:03:00]} 31. Nxe6 {[%emt 0:02:31]} fxe6 {[%emt 0:00:26]} 32. Rbd3 {[%emt 0:01:10]} Nc5 {[%emt 0:00:21]} 33. Rd1 {[%emt 0:00:12]} e5 {[%emt 0:01:15]} 34. R4d2 {[%emt 0:00:50]} Rxa3+ {[%emt 0:00:08]} 35. Kf2 {[%emt 0:00:13]} Rf8+ {[%emt 0:00:09]} 36. Kg1 {[%emt 0:00:30]} Rxg3 {[%emt 0:00:57]} 37. Kh2 {[%emt 0:00:06]} Ra3 {[%emt 0:01:29]} 38. Rb1 {[%emt 0:00:46]} g6 {[%emt 0:00:50]} 39. Rbd1 {[%emt 0:00:30]} Rfa8 {[%emt 0:02:13]} 40. Kg1 {[%emt 0:01:23]} Ra2 {[%emt 0:00:07]} 41. Kf2 {[%emt 0:00:18]} Rxd2+ {[%emt 0:00:06]} 42. Rxd2 {[%emt 0:00:02]} Ra4 {[%emt 0:00:29]} 43. Rc2 {[%emt 0:00:16]} Ra3 {[%emt 0:00:15]} 44. h4 {[%emt 0:00:21]} Na4 {[%emt 0:01:36]} 45. Bf1 {[%emt 0:00:35]} Rc3 {[%emt 0:00:14]} 0-1

[Event "Hungarian Youth-ch I 2024"]
[Site "Szolnok"]
[Date "2024.04.01"]
[Round "1.7"]
[White "Kolimar, Kristof Pal"]
[Black "Puskas, Mihaly"]
[Result "1-0"]
[ECO "A06"]
[WhiteElo "2282"]
[BlackElo "1978"]
[Annotator "RC"]
[PlyCount "55"]
[EventDate "2024.03.31"]
[EventType "swiss"]
[EventCountry "HUN"]
[SourceTitle "playchess.com"]
[Source "ChessBase"]
[SourceQuality "1"]
[TimeControl "5400+30"]

1. Nf3 {[%emt 0:00:08]} d5 {[%emt 0:00:08]} 2. c4 {[%emt 0:00:07]} e6 {[%emt 0:00:23]} 3. d4 {[%emt 0:00:18]} c6 {[%emt 0:00:22]} 4. Qc2 {[%emt 0:02:18]} dxc4 {[%emt 0:03:52]} 5. Qxc4 {[%emt 0:01:00]} b5 {[%emt 0:01:11]} 6. Qc2 {[%emt 0:01:15]} Bb7 {[%emt 0:01:01]} 7. e4 {[%emt 0:03:42]} Nd7 {[%emt 0:05:03]} 8. Bd3 {[%emt 0:03:11]} a6 {[%emt 0:06:06]} 9. O-O {[%emt 0:04:35]} c5 {[%emt 0:01:32]} 10. d5 {[%emt 0:05:22]} c4 {[%emt 0:06:36]} 11. Be2 {[%emt 0:00:25]} exd5 {[%emt 0:01:28]} 12. exd5 {[%emt 0:01:33]} Bd6 {[%emt 0:03:49]} 13. Nd4 {[%emt 0:13:50]} Ne7 {[%emt 0:01:11]} 14. Bg5 {[%emt 0:03:08]} O-O {[%emt 0:08:16]} 15. Nf5 {[%emt 0:12:03]} Nb6 {[%emt 0:00:55]} 16. Bxe7 {[%emt 0:05:10]} Bxe7 {[%emt 0:00:12]} 17. Nc3 {[%emt 0:00:30]} Bf6 {[%emt 0:04:15]} 18. Rad1 {[%emt 0:04:34]} Rc8 {[%emt 0:15:16]} 19. Ne4 {[%emt 0:05:30]} Bxd5 {[%emt 0:05:17]} 20. Rxd5 {[%emt 0:11:34]} Nxd5 {[%emt 0:01:46]} 21. Rd1 {[%emt 0:00:07]} Nb4 {[%emt 0:23:38]} 22. Rxd8 {[%emt 0:00:31]} Nxc2 {[%emt 0:00:08]} 23. Nxf6+ {[%emt 0:00:02]} Kh8 {[%emt 0:00:31]} 24. Rd2 {[%emt 0:05:29]} Nb4 {[%emt 0:04:31]} 25. Nd7 {[%emt 0:02:19]} Rfd8 {[%emt 0:01:13]} 26. Ne7 {[%emt 0:00:20]} Rc7 {[%emt 0:00:54]} 27. Ne5 {[%emt 0:00:01]} Rf8 {[%emt 0:00:43]} 28. Nxf7+ {[%emt 0:00:05]} 1-0

[Event "Hungarian Youth-ch I 2024"]
[Site "Szolnok"]
[Date "2024.04.01"]
[Round "1.8"]
[White "Szabo, Marton Nandor"]
[Black "Turcsanyi, Vince Gergo"]
[Result "0-1"]
[ECO "E32"]
[WhiteElo "1957"]
[BlackElo "2247"]
[Annotator "ChessBase"]
[PlyCount "84"]
[EventDate "2024.03.31"]
[EventType "swiss"]
[EventCountry "HUN"]
[SourceTitle "playchess.com"]
[Source "ChessBase"]
[SourceQuality "1"]
[TimeControl "5400+30"]

1. d4 {[%emt 0:00:03]} Nf6 {[%emt 0:00:15]} 2. c4 {[%emt 0:00:08]} e6 {[%emt 0:00:19]} 3. Nc3 {[%emt 0:00:06]} Bb4 {[%emt 0:00:08]} 4. Qc2 {[%emt 0:00:04]} O-O {[%emt 0:00:24]} 5. e4 {[%emt 0:00:11]} d6 {[%emt 0:00:54]} 6. Bd3 {[%emt 0:03:31]} e5 {[%emt 0:02:10]} 7. d5 {[%emt 0:02:41]} Nbd7 {[%emt 0:01:44]} 8. Nge2 {[%emt 0:01:52]} Nc5 {[%emt 0:02:39]} 9. O-O {[%emt 0:05:22]} a5 {[%emt 0:06:52]} 10. Ng3 {[%emt 0:12:13]} Bd7 {[%emt 0:09:47]} 11. Nce2 {[%emt 0:10:21]} a4 {[%emt 0:06:57]} 12. h3 {[%emt 0:09:21]} c6 {[%emt 0:08:13]} 13. Be3 {[%emt 0:17:26]} cxd5 {[%emt 0:07:31]} 14. cxd5 {[%emt 0:07:03]} Rc8 {[%emt 0:04:37]} 15. Qd1 {[%emt 0:00:48]} Nxd3 {[%emt 0:15:26]} 16. Qxd3 {[%emt 0:00:02]} Qe8 {[%emt 0:00:35]} 17. Rfc1 {[%emt 0:01:53]} Bb5 {[%emt 0:03:40]} 18. Qd1 {[%emt 0:04:02]} Qd7 {[%emt 0:04:36]} 19. Bd2 {[%emt 0:03:27]} Bc5 {[%emt 0:04:38]} 20. Nc3 {[%emt 0:03:50]} a3 {[%emt 0:05:13]} 21. b4 {[%emt 0:05:54]} Bd4 {[%emt 0:09:27]} 22. Nf5 {[%emt 0:03:43]} Bxc3 {[%emt 0:00:20]} 23. Bxc3 {[%emt 0:00:49]} Nxe4 {[%emt 0:02:14]} 24. Qg4 {[%emt 0:00:02]} g6 {[%emt 0:00:07]} 25. Nh6+ {[%emt 0:00:55]} Kg7 {[%emt 0:00:00]} 26. Qxe4 {[%emt 0:00:14]} Kxh6 {[%emt 0:00:06]} 27. Qh4+ {[%emt 0:03:25]} Kg7 {[%emt 0:00:01]} 28. Bd2 {[%emt 0:00:10]} h5 {[%emt 0:01:39]} 29. g4 {[%emt 0:03:06]} Qd8 {[%emt 0:01:06]} 30. Qg3 {[%emt 0:00:50]} hxg4 {[%emt 0:00:32]} 31. Qxg4 {[%emt 0:01:12]} Qd7 {[%emt 0:01:32]} 32. Rxc8 {[%emt 0:01:04]} Qxg4+ {[%emt 0:01:41]} 33. hxg4 {[%emt 0:00:01]} Rxc8 {[%emt 0:00:00]} 34. Rc1 {[%emt 0:00:02]} Rc4 {[%emt 0:00:26]} 35. Rxc4 {[%emt 0:01:19]} Bxc4 {[%emt 0:00:01]} 36. b5 {[%emt 0:00:01]} Kf6 {[%emt 0:00:53]} 37. Bb4 {[%emt 0:00:59]} Ke7 {[%emt 0:00:05]} 38. Bxa3 {[%emt 0:00:10]} Bxa2 {[%emt 0:00:48]} 39. Kg2 {[%emt 0:00:57]} Bxd5+ {[%emt 0:00:15]} 40. Kg3 {[%emt 0:00:02]} b6 {[%emt 0:01:52]} 41. Bc1 {[%emt 0:00:53]} Kd7 {[%emt 0:00:07]} 42. f4 {[%emt 0:00:29]} Bc4 {[%emt 0:00:36]} 0-1